Cogmind - Beta 15 @@@ ROGUE MODE // 2025.05.06 @ 23:58:26 Player: Rotpup_ Result: Destroyed by S-10 Pest with Light Assault Rifle Performance ------------- Evolutions (2) 1000 Regions Visited (3) 600 Robots Destroyed (68) 340 Value Destroyed (2115) 2115 Prototype IDs (0) 0 Alien Tech Used (0) 0 Bonus (109) 109 TOTAL SCORE: 4164 Bonus ------- High Alert Combat Kills 109 Cogmind --------- Core Integrity 0/550 Matter 300/300 Energy 99/100 System Corruption 1% Temperature Cool (0) Movement Core (1400) Ox27 Location -8/Materials Parts ------- > --- POWER (1) -------- (None) > --- PROPULSION (2) --- (None) > --- UTILITY (6) ------ Improved Heat Sink Advanced Heat Sink Huge Storage Unit Advanced Visual Processing Unit Terrain Scan Processor > --- WEAPON (2) ------- (None) > --- INVENTORY (25) --- Light Ion Engine Mining Claw Peak State ------------ > --- POWER ------------ Light Nuclear Core > --- PROPULSION ------- Wheel Armored Wheel > --- UTILITY ---------- Improved Heat Sink Advanced Heat Sink Huge Storage Unit Advanced Visual Processing Unit Terrain Scan Processor Improved Light Armor Plating > --- WEAPON ----------- Particle Gun Light Assault Rifle > --- INVENTORY -------- Light Ion Engine Wheel Heat Sink Heat Sink Mining Claw [Rating: 26] Favorites ----------- Power Deuterium Engine Engine Deuterium Engine Power Core Light Nuclear Core Propulsion Armored Wheel Treads Light Treads Wheel Armored Wheel Utility Huge Storage Unit Device Seismic Detector Storage Huge Storage Unit Processor Signal Interpreter Protection Improved Light Armor Plating Weapon Assault Rifle Energy Gun Medium Laser Ballistic Gun Assault Rifle Launcher Missile Launcher Impact Weapon Hammer Slashing Weapon Mining Claw Build | -11 -10 -9 -8 ------- Run | Yrd Mat Mat Mat Slots Evolved 4 | . . 2 2 Power . | . . . . Propulsion . | . . . . Utility 4 | . . 2 2 Weapon . | . . . . Parts Attached 51 | 7 6 13 25 Power 8 | 1 1 1 5 Engine 7 | 1 1 1 4 Core 1 | . . . 1 Reactor . | . . . . Propulsion 13 | 2 2 3 6 Treads 2 | 2 . . . Leg . | . . . . Wheel 11 | . 2 3 6 Hover . | . . . . Flight . | . . . . Utility 13 | 2 1 5 5 Device 6 | 1 . 3 2 Storage 2 | 1 1 . . Processor 4 | . . 2 2 Hackware . | . . . . Protection 1 | . . . 1 Artifact . | . . . . Weapon 17 | 2 2 4 9 Energy Gun 10 | 2 . 1 7 Energy Cannon . | . . . . Ballistic Gun 4 | . 2 1 1 Ballistic Cannon . | . . . . Launcher 1 | . . . 1 Special Weapon . | . . . . Impact Weapon 1 | . . 1 . Slashing Weapon 1 | . . 1 . Piercing Weapon . | . . . . Special Melee Weapon . | . . . . Unidentified Prototypes . | . . . . Corrupted Parts 1 | . . . 1 System Corruption 1 | . . . 1 Parts Lost 30 | . . 3 27 Power 4 | . . . 4 Propulsion 11 | . . 3 8 Utility 5 | . . . 5 Weapon 10 | . . . 10 Highest Loss Streak 7 | . . 2 7 To Critical Strikes . | . . . . Average Backups 8 | 4 7 9 7 Power . | . 1 1 . Propulsion 3 | 2 2 3 2 Utility 2 | . 2 3 2 Weapon 1 | 1 1 1 1 Tool/Special . | . . . . Unused Backups 6 | . . 4 2 Power 1 | . . 1 . Propulsion 2 | . . 2 . Utility 2 | . . . 2 Weapon 1 | . . 1 . Tool/Special . | . . . . Average Slot Usage (%) 96 | . 100 97 92 Engine 10 | . 14 11 7 Treads 3 | . 12 . . Wheel 17 | . 15 20 16 Device 13 | . 14 11 15 Storage 11 | . 14 11 9 Processor 17 | . . 21 25 Energy Gun 11 | . 24 4 10 Ballistic Gun 9 | . 3 16 4 Peak Build Rating 26 | 7 8 18 26 Average Rating 13 | 5 7 14 20 On Entrance 8 | . 7 8 17 Naked Turns . | . . . . Heaviest Build 98 | 13 90 96 98 Greatest Support 40 | 40 40 24 24 Greatest Overweight (x) 29 | . 4 29 27 Average Overweight (x) 3 | . 3 3 4 Largest Inventory Capacity 25 | 8 25 25 25 Average Capacity 23 | 7 24 25 25 Most Carried 12 | 7 11 12 11 Average Carried 8 | 5 7 9 7 Final Capacity 25 | 8 25 25 25 Final Carried 10 | 7 10 10 2 Class Distribution -------------------- 75% | Mutant 16% | Skirmisher 6% | Scavenger-Mutant Dominant Class ---------------- Mutant | -10/Materials Mutant | -9/Materials Skirmisher | -8/Materials Resources | -11 -10 -9 -8 ----------- Run | Yrd Mat Mat Mat Matter Collected 1185 | 176 124 327 558 Remotely . | . . . . Salvage Created 2383 | 96 334 553 1400 Parts 141 | 9 17 38 77 Haulers Intercepted 1 | . . . 1 Recyclers Shooed 2 | . . 2 . Parts Field Recycled . | . . . . Retrieved Matter . | . . . . Parts Self-Destructed . | . . . . Prevented . | . . . . Kills | -11 -10 -9 -8 ------- Run | Yrd Mat Mat Mat Combat Hostiles Destroyed 54 | . 10 11 33 Melee 1 | . . . 1 Guns 41 | . 10 11 20 AOE 11 | . . . 11 Classes Destroyed 13 | 2 3 4 4 Worker 3 | . . 1 2 Builder 1 | . . . 1 Tunneler 2 | 2 . . . Hauler 1 | . . . 1 Recycler 1 | 1 . . . Mechanic 1 | . . 1 . Watcher 5 | . 1 2 2 Swarmer 11 | . 3 . 8 Grunt 33 | . 7 8 18 Brawler 2 | . . 1 1 Protector 1 | . . . 1 Sentry 5 | . . 2 3 Specialist 2 | . . . 2 Best Kill Streak 9 | 3 6 4 9 Combat Bots Only 8 | . 6 3 8 Max Kills in Single Turn 5 | 1 1 1 5 Gunslinging . | . . . . Exploded 4 | . . . 4 Melee 1 | . . . 1 Uniques/NPCs Destroyed . | . . . . Combat | -11 -10 -9 -8 -------- Run | Yrd Mat Mat Mat Hostile Shots Fired 329 | . 41 61 227 Missed 81 | . 7 15 59 Hits 248 | . 34 46 168 Projectile 248 | . 34 46 168 Critical Strikes 10 | . 1 1 8 Damage Taken 3529 | . 377 599 2553 Core 689 | . 70 65 554 Absorbed by Shields . | . . . . Regen/Repaired (Parts) 41 | . . 41 . Core Remaining (%) 85 | 100 72 83 . Volleys Fired 183 | 10 25 45 103 Largest 2 | 2 2 2 2 Hottest 119 | 100 100 88 119 Shots Fired 342 | 20 50 90 182 Gun 337 | 20 50 90 177 Cannon . | . . . . Launcher 5 | . . . 5 Special . | . . . . Kinetic 138 | . . 70 68 Thermal 160 | 20 50 20 70 Explosive 5 | . . . 5 Electromagnetic 39 | . . . 39 Robot Hit Streak 17 | 9 14 10 17 Robot Miss Streak 5 | 3 2 5 3 Penetration Max . | . . . . Secondary Targets 3 | . 2 1 . Max Gunslinging Chain 1 | . 1 1 . Shots Hit Robots 242 | 12 31 56 143 Core Hits 124 | 3 19 23 79 Critical Kills . | . . . . Critical Parts Destroyed 1 | . . . 1 Critical Strikes 10 | 2 3 . 5 Burn 9 | 2 3 . 4 Destroy 1 | . . . 1 Melee Attacks 30 | . . 16 14 Impact 12 | . . 12 . Slashing 18 | . . 4 14 Piercing . | . . . . Sneak Attacks . | . . . . Combat Hostiles . | . . . . Follow-up Attacks . | . . . . Damage Inflicted 4416 | 165 389 760 3102 Guns 3249 | 165 389 760 1935 Cannons . | . . . . Explosions 1002 | . . . 1002 Melee 165 | . . . 165 Ramming . | . . . . Kinetic 1072 | . . 554 518 Thermal 1685 | 165 389 206 925 Explosive 898 | . . . 898 Electromagnetic 596 | . . . 596 Impact . | . . . . Slashing 165 | . . . 165 Piercing . | . . . . Highest Corruption 1 | . . 1 1 Average Corruption 1 | . . 1 1 Corruption Purged . | . . . . Corruption Blocked . | . . . . Overload Shots . | . . . . Overflow Damage 46 | . . . 46 Projectiles . | . . . . Explosions 46 | . . . 46 Melee . | . . . . Knockbacks . | . . . . Impact . | . . . . Kinetic . | . . . . Secondary . | . . . . Self-Inflicted Damage 124 | . . . 124 Shots 5 | . . . 5 Rammed . | . . . . Targets Rammed . | . . . . Kicked . | . . . . Crushed . | . . . . Highest Temperature 375 | 197 375 231 228 Average Temperature 103 | 112 166 97 67 Received Heat Transfer 1650 | . 186 276 1188 Siege Activations . | . . . . Martial Activations . | . . . . Shielding Activations . | . . . . Robots Disrupted . | . . . . Combat Hostiles . | . . . . Robots Corrupted 1 | . . . 1 Combat Hostiles 1 | . . . 1 Parts Fried 1 | . . . 1 Impact Corruptions . | . . . . Robots Melted 1 | 1 . . . Combat Hostiles . | . . . . Parts Melted 14 | . 6 1 7 Heat Transferred 4817 | 629 1369 481 2338 Parts Sabotaged . | . . . . Parts Stolen . | . . . . Parts Stripped . | . . . . Power Chain Reactions 1 | . . . 1 Alert | -11 -10 -9 -8 ------- Run | Yrd Mat Mat Mat Maximum Alert Level 2 | . . . 2 Low Security (%) 87 | 100 100 100 56 Level 1 6 | . . . 21 Level 2 6 | . . . 21 Level 3 . | . . . . Level 4 . | . . . . Level 5 . | . . . . High Security . | . . . . Max Security . | . . . . Peak Influence 579 | 5 117 167 579 Initial 65 | . . 33 65 Average 92 | . 31 19 257 Influence Increases 1707 | 15 264 344 1084 Destroy 0b10 Robot/C 1060 | . 200 220 640 Destroy 0b10 Robot/NC 75 | 15 5 20 35 Destroy Leader 232 | . 42 64 126 Successful Hack 26 | . 16 4 6 Select Force Hacks 30 | . . . 30 Disable Machine 45 | . . 15 30 Destroy Structure 44 | . 1 6 37 Partial Spotted 30 | . . 15 15 Lose Combat Pursuer 165 | . . . 165 Influence Decreases 1184 | 15 184 269 716 Entered New Map 137 | . . 47 90 Time Decay 767 | 15 184 212 356 Lost Part 280 | . . 10 270 Squads Dispatched 14 | . 3 3 8 Investigation 7 | . 2 3 2 Extermination . | . . . . Reinforcement 4 | . 1 . 3 Assault 2 | . . . 2 Garrison 1 | . . . 1 Intercept . | . . . . Searches Triggered . | . . . . Construction Impeded . | . . . . Haulers Reinforced . | . . . . Active Scanning Responses . | . . . . Cargo Convoy Interrupts . | . . . . Stealth | -11 -10 -9 -8 --------- Run | Yrd Mat Mat Mat Distress Signals 8 | . 1 2 5 Communications Jammed . | . . . . Distress Signals . | . . . . Times Spotted 88 | . 15 19 54 Peak Tracking Total 11 | . 6 4 11 Tactical Retreats 6 | . . . 6 Traps | -11 -10 -9 -8 ------- Run | Yrd Mat Mat Mat Traps Triggered 2 | . 1 1 . Indirectly . | . . . . Trap Hack Attempts . | . . . . Triggered . | . . . . Disarmed . | . . . . Reprogrammed . | . . . . Reused . | . . . . Traps Extracted . | . . . . Installed . | . . . . Triggered . | . . . . Machines | -11 -10 -9 -8 ---------- Run | Yrd Mat Mat Mat Machines Disabled 3 | . . 1 2 Max in Single Turn 1 | . . 1 1 Garrison Access 1 | . . . 1 Machines Repaired . | . . . . Machines Dismantled . | . . . . Machines Sabotaged . | . . . . Overloaded Fab Kills . | . . . . Hacking | -11 -10 -9 -8 --------- Run | Yrd Mat Mat Mat Machines Accessed 16 | . 6 6 4 Terminals 13 | . 6 4 3 Fabricators . | . . . . Repair Stations 2 | . . 2 . Recycling Units . | . . . . Scanalyzers 1 | . . . 1 Garrison Access . | . . . . Total Hacks 42 | . 14 17 11 Successful 23 | . 9 8 6 Failed 19 | . 5 9 5 Catastrophic 2 | . . 1 1 Database Lockouts . | . . . . Manual 35 | . 12 12 11 Terminals 36 | . 14 12 10 Fabricators . | . . . . Repair Stations 5 | . . 5 . Recycling Units . | . . . . Scanalyzers 1 | . . . 1 Garrison Access . | . . . . Terminal Hacks 7 | . 3 1 3 Record 1 | . 1 . . Part Schematic 1 | . . . 1 Zone Layout 5 | . 2 1 2 Fabricator Hacks . | . . . . Repair Station Hacks 3 | . . 3 . Scan Component 2 | . . 2 . Repair 1 | . . 1 . Recycling Unit Hacks . | . . . . Scanalyzer . | . . . . Garrison Access Hacks . | . . . . Unauthorized Hacks 13 | . 6 4 3 Terminals 12 | . 6 4 2 Botnet 12 | . 6 4 2 Fabricators . | . . . . Repair Stations . | . . . . Recycling Units . | . . . . Scanalyzers 1 | . . . 1 Extract 1 | . . . 1 Garrison Access . | . . . . Data Cores Recovered . | . . . . Used . | . . . . Hacking Detections 12 | . 4 5 3 Full Trace Events 6 | . 2 3 1 Feedback Events . | . . . . Feedback Blocked . | . . . . Robot Schematics Acquired . | . . . . Robots Built . | . . . . Authchips . | . . . . Time . | . . . . Total Robot Build Rating . | . . . . Part Schematics Acquired 13 | . . . 13 Parts Built . | . . . . Authchips . | . . . . Time . | . . . . Total Part Build Rating . | . . . . Parts Repaired 1 | . . 1 . Time 26 | . . 26 . Parts Recycled . | . . . . Recycled Matter . | . . . . Retrieved Matter . | . . . . Retrieved Components . | . . . . Parts Scanalyzed . | . . . . Part Schematics Acquired . | . . . . Parts Damaged . | . . . . Bothacking | -11 -10 -9 -8 ------------ Run | Yrd Mat Mat Mat Used RIF Installer . | . . . . Robots Hacked . | . . . . Non-combat . | . . . . Combat . | . . . . Robot Hacks Applied . | . . . . Relay Couplers Released 3 | . . . 3 Machine Destruction 3 | . . . 3 Fabnet Peak Effective % . | . . . . Robots Rewired . | . . . . Allies Hacked . | . . . . Hacks Repelled . | . . . . Allies | -11 -10 -9 -8 -------- Run | Yrd Mat Mat Mat Total Allies . | . . . . Largest Group . | . . . . Highest-Rated Group . | . . . . Highest-Rated Ally . | . . . . Total Orders . | . . . . Ally Attacks . | . . . . Total Damage . | . . . . Kills . | . . . . Allies Corrupted . | . . . . Allies Melted . | . . . . Intel | -11 -10 -9 -8 ------- Run | Yrd Mat Mat Mat Active Infowar (turns) 2644 | 50 673 1102 819 Optics 1921 | . . 1102 819 Sensors 138 | . . 20 118 Terrain 458 | . . 22 436 Seismic 2461 | 50 673 1099 639 Robot Analysis Total . | . . . . Derelict Logs Recovered . | . . . . Drone Launches . | . . . . Drone Recoveries . | . . . . Exploration | -11 -10 -9 -8 ------------- Run | Yrd Mat Mat Mat Turns Passed 2743 | 149 673 1102 819 Spaces Moved 972 | 72 258 385 257 Core 18 | 14 . 3 1 Treads 123 | 58 65 . . Legs . | . . . . Wheels 831 | . 193 382 256 Hover . | . . . . Flight . | . . . . Fastest Speed 50 | 50 140 135 135 Average Speed 158 | 138 179 149 154 Slowest Speed 1500 | 160 320 1500 1400 Overloaded Moves . | . . . . Propulsion Burnouts . | . . . . Robots Hopped . | . . . . Potential Cave-ins . | . . . . Cave-ins Triggered . | . . . . Exploration Rate (%) 31 | 5 57 33 29 Regions Visited 3 Branch Regions . Pre-discovered Areas . | . . . . Known Exits Taken 1 | . . 1 . Unknown Exits Taken 2 | 1 1 . . Scrap Searched . | . . . . Spaces Dug 11 | . . 7 4 Terrain Destroyed 42 | . . 7 35 Melee 11 | . . 7 4 Projectile . | . . . . AOE 31 | . . . 31 Terrain Rammed . | . . . . Walls Destroyed . | . . . . Machines Disabled . | . . . . Actions | -11 -10 -9 -8 --------- Run | Yrd Mat Mat Mat Total 1792 | 101 418 791 482 Wait 465 | . 119 299 47 Move 969 | 71 257 384 257 Hop . | . . . . Pick Up 57 | 13 7 17 20 Fast Attach 1 | 1 . . . Attach 35 | 6 . 6 23 Detach . | . . . . Swap 33 | . 6 13 14 Drop 19 | . 4 11 4 Fire 183 | 10 25 45 103 Melee 30 | . . 16 14 Ram . | . . . . Kick . | . . . . Crush . | . . . . Escape Stasis . | . . . . Rewire . | . . . . Trap . | . . . . Miscellaneous . | . . . . Route ------- -11/Scrapyard -10/Materials (discovered 3 exits: *Mat / [*Min] / [*Sub]) -9/Materials (discovered 3 exits: *Mat / [*Min] / *Sto) -8/Materials (discovered 1 exit: [Fac]) History --------- Turn | Location | Event 16 | -11/Scrapyard | Discovered new exit (range 14) 150 | -11/Scrapyard | Entered Materials 304 | -10/Materials | Build established: Mutant 506 | -10/Materials | Discovered new exit (range 9) 715 | -10/Materials | Discovered new exit (range 10) 751 | -10/Materials | Discovered new exit (range 13) 823 | -10/Materials | Entered another Materials area 823 | -9/Materials | Evolved 2 slots: Utility x2 832 | -9/Materials | Discovered new exit (range 14) 864 | -9/Materials | Identified exit to Storage 1025 | -9/Materials | Repaired Assault Rifle 1502 | -9/Materials | Discovered new exit (range 11) 1909 | -9/Materials | Discovered new exit (range 12) 1923 | -9/Materials | Identified exit to Materials 1925 | -9/Materials | Entered another Materials area 1925 | -8/Materials | Evolved 2 slots: Utility x2 2223 | -8/Materials | Lost 5 parts (1p2n2w) 2279 | -8/Materials | Garrison activated, responded to threat 2290 | -8/Materials | Discovered new exit (range 16) 2416 | -8/Materials | Destroyed 8 combat bots 2426 | -8/Materials | Lost 4 parts (1p1n1u1w) 2440 | -8/Materials | Core integrity fell below 50% 2572 | -8/Materials | Core integrity fell below 20% 2602 | -8/Materials | Lost 6 parts (1n3u2w) 2671 | -8/Materials | Lost 3 parts (1p1n1w) 2744 | -8/Materials | Destroyed by S-10 Pest with Light Assault Rifle Last Messages --------------- 02664_ Dropped Heat Sink. 02665_ Acquired 10 matter. 02683_ Arm. Wheel destroyed. 02685_ G-47 Trooper destroyed. 02693_ Critical hit (Burn: +37). 02696_ Imp. Heat Sink melted. 02696_ Lgt. Nuclear Core melted. 02696_ G-47 Trooper destroyed. 02703_ Wheel destroyed. 02713_ Imp. Heat Sink melted. 02713_ G-47 Trooper destroyed. 02716_ Acquired 5 matter. 02721_ Acquired 11 matter. 02721_ K-01 Serf collects debris. 02725_ K-01 Serf destroyed. 02732_ Particle Gun destroyed. 02733_ Lgt. Assault Rifle destroyed. 02738_ Imp. Light Armor Plating destroyed. 02742_ Wheel destroyed. 02742_ Lgt. Nuclear Core destroyed. Map ----- +----------------------------------------------------+ | ???????????????????????? #??? # " #??? | | ???????????????????????? #??? # %! " ##? | | ????????????????????????# #?# # [ #?## | | ????????????????????????# #??? # ] #?#? | | ????????????????????????# #?#? # % #### | | ????????????????????????# #??? # ! [! | | ????????????????????????# #???#####"""" =%""" | | ????????????????????#+### s########### #="T" | | ????????????????????? # ##### # | | ?????????????????????? s # """ """ #?##### | | ??????????????????????? s # """ """ ####### | | ????????????????????????# *=# """ """ ####### | | ????????????????????????#!=%#=""" """ ####### | | ????????????????????????#=!!#%""" """ ###?######+# | | ????????????????????????#==%+ !! #?###### | | ????????????????????????#%%*#=!! #???#?## | | ????????????????????????# =[#############?##?# " | | ????????????????????????# a# T ###?#### | | ????????????????????????# # [ ! ######## | | ????????????????????????# # ####### * | | ????????????????????????# # ##### %= | | ????????????????????????# # "" # = | | ????????????????????????# # "" # = = | | ????????????????????????# # ! "" # | | ????????????????????????# # =%= # # | | ????????????????????#####@ # /%*%############# | | ?????????????? =* % % | | ?????????????? m | | ?????????????? | | ????????????????##+######+#############+######## # | | ???????????????????????? ?????#??# ##?# # | | ??????????????????????? ??????#?# "" #### # | | ??????????????????????? ????????# ""S ##?? # | | ??????????????????????# ?????????#!! "" #?#? # | | ??????????????????????# ?????????#!! #??? # | | ??????????????????????# ?????????# #??? # | | ??????????????????????###????????##% [ ! #??? # | | ?????????????????????????????????#=[! #??# ? | | ?????????????????????????????????#############?# ? | | ????????????????????????????????????????????? ???? | | ?????????????????????????????????????????????????? | | ?????????????????????????????????????????????????? | | ?????????????????????????????????????????????????? | | ?????????????????????????????????????????????????? | | ?????????????????????????????????????????????????? | | ?????????????????????????????????????????????????? | | ?????????????????????????????????????????????????? | | ?????????????????????????????????????????????????? | | ?????????????????????????????????????????????????? | | ?????????????????????????????????????????????????? | +----------------------------------------------------+ Best States ------------- Heat Dissipation 64 Energy Generation 14 Energy Capacity 275 Matter Stores 300 Matter Capacity 300 Sight Range 20 Robot Scan Range 14 Terrain Scan Range 16 Terrain Scan Density 85 Armor Coverage 150 Evasion (%) 40 Recoil Reduction 2 Item Schematics ----------------- Datajack | -8/Materials | Hacked Maul | -8/Materials | Extracted Titanium Leg | -8/Materials | Extracted Lgt. Assault Rifle | -8/Materials | Extracted EM Shotgun | -8/Materials | Extracted Great Maul | -8/Materials | Extracted Reaction Control System | -8/Materials | Extracted Recoil Stabilizer | -8/Materials | Extracted Hardlight Generator | -8/Materials | Extracted Pulse Rifle | -8/Materials | Extracted Imp. Light Cannon | -8/Materials | Extracted Wheel | -8/Materials | Extracted Hvy. Particle Cannon | -8/Materials | Extracted Robot Schematics ------------------ None Fabricated ------------ Nothing Repaired ---------- Assault Rifle | 59% | -9/Materials Alien Tech Used ----------------- None Achievements -------------- None Challenges ------------ None Game ------ Seed UltimateMagneticMesh Manual? 0 Play Time 00:25:41 Cumulative 13.3 hours Start 2025.05.06 @ 23:33:32 End 2025.05.06 @ 23:58:26 Sessions 1 Manual Loads 0 Difficulty Rogue Special Mode None Game No. 34 Rogue 33 Adventurer 0 Explorer 1 Win Type - Total 0 Types 0/0/0/0/0/0/0/0/0/0 Lore% 9 Gallery% 21 Achievement% 21 Wizard Run 0 Options --------- Layout 1 ASCII 0 Keyboard 0 Movement Mouse Keybinds 0 Fullscreen 2 Font 24/Smallcaps Map View 50x35 Zoom Use 0% Tactical HUD 1 Map Filters NONE Filters NONE Steam 1 RUN: 3fad7fa8-39a8-4d5f-99cf-b17f9c7f4210